Workbook

Sheet Taşıma gücü
P2: SIĞ TEMELLERİN TAŞIMA GÜCÜ KAPASİTESİ HESABIv.1 (Toprak Zeminlerde Statik ve Depremli Durum için)
R5: PROJE ADI : | AD5: LÜTFEN SORUNLARI VE ÖNERİLERİNİZİ gurelozdemir2@gmail.com adresine iletiniz.
R6: Ada/Parsel No : | AD6: 300 PAFTA 2278 ADA/7 PARSEL | BA6: Parsel Sorgu | BG6: Koordinatlar: X: | BP6: 123456.1 | BW6: Y: | CA6: 1234567.1 | CG6: Kot: | CJ6: 1270 | CO6: Datum: | CS6: ITRF-3°
P7: Temel Veri Girişi ve Seçim Yapma2
R8: Genel Parametreler [Temel etki derinliği içerisinde tek tabakalı homojen zemin koşullarında geçerlidir] | BG8: Yük ve Eğim Bilgileri3 [Statik Proje Müellifi'nden alınacaktır]
R9: Temel Genişliği (B) : | AD9: 4 | AN9: Genel Parametreler | AP9: =IF($AY$11=0,"φᵤ=0 için γ₁=γ₂[doygun]","") -> φᵤ=0 için γ₁=γ₂[doygun] | AU9: g1 [doğal] | AY9: 18 | BG9: Temel Yük Eğimi: | BQ9: Yük eğimi yok | CH9: Belirlenen Yerel Zemin Sınıfı: | CT9: ZD
B10: TMMOB JEOLOJİ MÜHENDİSLERİ ODASI | R10: Temel Uzunluğu (L) : | AD10: 5 | AU10: γ2 [doygun] | AY10: 18 | BG10: eB=Mx/N : | BQ10: eL=My/N : | CH10: Temel Taşıma Gücü Dayanım Katsayısı, γRv: | CT10: 1.4
R11: Sığ Temel Tipi : | AD11: =IF(ISTEXT(AD10),"Tanımlı değil",IF($AD$9<$AD$10,"Dikdörtgen",IF($AD$9=$AD$10,"Kare",IF(AD10<AD9,"Kontrol ediniz")))) -> Dikdörtgen | AP11: =IF(AY11=0,"øᵤ","ø") -> øᵤ | AY11: 0 | BG11: Hx [kN] : | BQ11: Hy [kN] : | CH11: Statik Durumda Temel Taban Basıncı, qo: | CT11: 220
R12: Temel Derinliği (Df) : | AD12: 1.5 | AP12: =IF(AY11=0,"cᵤ","c") -> cᵤ | AY12: 40 | BG12: N [Toplam Düşey Yük] : | BZ12: N: Düşey Kuvvet [kN]; Hx, Hy: Yatay Kuvvet [kN]; Mx,My: Eğilme Mom. [kN·m]
CH13: Depremli Yükleme Durumu İçin Temel Taban Basıncı: | CT13: 200
R14: Yeraltı Suyu Derinliği : | AL14: =IF(AND($R$16=TRUE,$AF$14>0),"L",IF(AND($R$16=FALSE,$AF$14=""),"L",IF(AND($AY$11=0,$AF$14>0),"L",""))) ->  | AN14: Zemin Tipi: | AU14: Az siltli kum | BG14: α ( °) : | BQ14: β( °) :
R16: TRUE | S16: =IF($R$16=TRUE,100,$AF$14) -> 100 | AY16: ED 50-3° | AZ16: ED 50-6° | BA16: WGS 84 | BB16: ITRF-3° | BC16: ITRF-6° | BU16: Yük eğimi yok | BV16: Temel genişliği yönünde | BW16: Temel uzunluğu yönünde | BX16: Çift yönlü eksantrisite | CE16: ZA | CF16: ZB | CG16: ZC | CH16: ZD | CI16: ZE | CV16: TRUE
B17: Terzaghi Taşıma Gücü Formülü (1943) | W17: Meyerhof Taşıma Gücü Formülü (1963) | AR17: Brinch Hansen Taşıma Gücü Formülü (1970) | BM17: Vesic Taşıma Gücü Formülü (1973) | CF17: Genel Taşıma Gücü Formülü (TBDY-2018)
B20: =IF(AND($B$32="Lokal Makaslama Yenilmesi",AY11=0),"c* =",IF($AY$11=0,"cᵤ",IF($B$32="Genel Makaslama Yenilmesi","c =","c* ="))) -> cᵤ | G20: =IF($B$32="Genel Makaslama Yenilmesi",$AY$12,($AY$12*2/3)) -> 40 | L20: =IF($B$32="Genel Makaslama Yenilmesi","Nc =","Nc*=") -> Nc = | P20: =IF($AY$11=0,(1.5*PI()+1),(_xlfn.COT(RADIANS($G$25))*($P$22-1))) -> 5.71238898 | W20: =IF($AY$11=0,"cᵤ","c") -> cᵤ | AA20: =$AY$12 -> 40 | AG20: Nc = | AK20: =IF($AY$11=0,2+PI(),_xlfn.COT(RADIANS($AY$11))*($AK$23-1)) -> 5.141592654 | AR20: =IF($AY$11=0,"cᵤ","c") -> cᵤ | AW20: =$AY$12 -> 40 | BB20: Nc = | BF20: =IF($AY$11=0,2+PI(),_xlfn.COT(RADIANS($AY$11))*($BF$24-1)) -> 5.141592654 | BM20: =IF($AY$11=0,"cᵤ","c") -> cᵤ | BQ20: =$AY$12 -> 40 | BV20: Nc = | CA20: =IF($AY$11=0,2+PI(),_xlfn.COT(RADIANS($BQ$32))*($CA$24-1)) -> 5.141592654 | CF20: =IF($AY$11=0,"cᵤ","c") -> cᵤ | CJ20: =$AY$12 -> 40 | CO20: Nc = | CS20: =IF($AY$11=0,2+PI(),($CA$24-1)*_xlfn.COT(RADIANS($AY$11))) -> 5.141592654
B21: K1 = | G21: =+IF($AD$11="Şerit [B/L=0]",1,IF($AD$11="Dikdörtgen",(1+(0.3*$AD$9/$AD$10)),IF($AD$11="Kare",1.3,1.3))) -> 1.24 | L21: g₂ = | P21: =IF($S$16<=$AD$12,$AY$10-$G$28,IF($S$16<=$AD$12+$AD$9,($AY$10-$G$28)+((($S$16-$AD$12)/$AD$9)*($AY$9-($AY$10-$G$28))),IF($S$16>$AD$12+$AD$9,$AY$9))) -> 18 | W21: sc = | AA21: =IF($AA$29>0,"",IF(AND($AY$11=0,$AD$10="şerit"),1+0.2*(0),IF(AND($AY$11>0,$AD$10="şerit"),1+0.2*TAN(RADIANS(45+($AY$11/2)))^2*(0),IF($AY$11=0,1+0.2*($AD$9/$AD$10),IF($AY$11>0,1+0.2*TAN(RADIANS(45+($AY$11/2)))^2*(AD9/AD10)))))) -> 1.16 | AG21: dc = | AK21: =IF($AY$11=0,1+0.2*($AD$12/$AD$9),IF($AY$11>0,1+0.2*SQRT(TAN(RADIANS(45+($AY$11/2)))^2)*($AD$12/$AD$9))) -> 1.075 | AR21: =IF(AY11=0,"s'c =",IF(BQ9="Yük eğimi yok","sc",IF(BQ9="Temel genişliği yönünde","sc,B",IF(BQ9="Temel uzunluğu yönünde","sc,L")))) -> s'c = | AW21: =IF(AND($AY$11=0,$AD$10="şerit",$BQ$9="Yük eğimi yok"),1,IF(AND($AY$11>0,$AD$10="şerit",$BQ$9="Yük eğimi yok"),1,IF(AND($AY$11=0,$BQ$9="Yük eğimi yok"),0.2*($BO$42/$BW$42),IF(AND($AY$11>0,$BQ$9="Yük eğimi yok"),1+(($BF$24/$BF$20)*($BO$42/$BW$42)),IF(AND($AY$11=0,$BQ$9="Temel genişliği yönünde"),0.2*($BO$42/$BW$42),IF(AND($AY$11>0,$BQ$9="Temel genişliği yönünde"),1+(($BF$24/$BF$20)*($BO$42/$BW$42)),IF(AND($AY$11=0,$BQ$9="Temel uzunluğu yönünde"),0.2*($BW$42/$BO$42),IF(AND($AY$11>0,$BQ$9="Temel uzunluğu yönünde"),1+(($BF$24/$BF$20)*($BW$42/$BO$42)))))))))) -> 0.16 | BB21: =IF(AY11=0,"d'c =",IF(BQ9="Yük eğimi yok","dc =",IF(BQ9="Temel genişliği yönünde","dc,B =",IF(BQ9="Temel uzunluğu yönünde","dc,L =")))) -> d'c = | BF21: =IF(AND($AY$11=0,($AD$12/$AD$9)>1),0.4*ATAN(AD12/AD10),IF(AND($AY$11=0,($AD$12/$AD$9)<=1),0.4*($AD$12/$AD$10),IF(AND(BQ9="Yük eğimi yok",$AY$11=0,$AD$12<=AD9),1+(0.4*($AD$12/AD9)),IF(AND(BQ9="Yük eğimi yok",$AY$11=0,$AD$12>AD9),(0.4*ATAN($AD$12/AD9)),IF(AND(BQ9="Yük eğimi yok",$AY$11>0,$AD$12<=AD9),1+0.4*($AD$12/AD9),IF(AND(BQ9="Yük eğimi yok",$AY$11>0,$AD$12>AD9),1+(0.4*ATAN($AD$12/AD9)),IF(AND(BQ9="Temel genişliği yönünde",$AY$11=0,$AD$12<=$BO$42),1+(0.4*($AD$12/AD9)),IF(AND(BQ9="Temel genişliği yönünde",$AY$11=0,$AD$12>AD9),1+(0.4*ATAN($AD$12/AD9)),IF(AND(BQ9="Temel genişliği yönünde",$AY$11>0,$AD$12<=AD9),1+0.4*($AD$12/AD9),IF(AND(BQ9="Temel genişliği yönünde",$AY$11>0,$AD$12>AD9),1+(0.4*ATAN($AD$12/AD9)),IF(AND(BQ9="Temel uzunluğu yönünde",$AY$11=0,$AD$12<=AD9),1+(0.4*($AD$12/$BW$42)),IF(AND(BQ9="Temel uzunluğu yönünde",$AY$11=0,$AD$12>AD9),1+(0.4*ATAN($AD$12/$BW$42)),IF(AND(BQ9="Temel uzunluğu yönünde",$AY$11>0,$AD$12<=AD9),1+0.4*($AD$12/$BW$42),IF(AND(BQ9="Temel uzunluğu yönünde",$AY$11>0,$AD$12>AD9),1+(0.4*ATAN($AD$12/$BW$42)))))))))))))))) -> 0.12 | BM21: =IF(BQ9="Temel genişliği yönünde","sc,B",IF(BQ9="Temel uzunluğu yönünde","sc,L","sc" )) -> sc | BQ21: =IF($AY$12=0,1,IF(AND($AD$11="Dikdörtgen",BQ9="Yük eğimi yok"),(1+(AD9/AD10)*($CA$24/$CA$20)),IF(AND($AD$11="Dikdörtgen",$BQ$9="Temel genişliği yönünde"),(1+(AD9/AD10)*($CA$24/$CA$20)),IF(AND($AD$11="Dikdörtgen",$BQ$9="Temel uzunluğu yönünde"),(1+(AD10/AD9)*($CA$24/$CA$20)),IF($AD$11="Kare",(1+(AD9/AD10)*($CA$24/$CA$20)),IF($AD$11="Daire [B=D]",(1+($CA$24/$CA$20)),IF($AD$11="Şerit",1,"-"))))))) -> 1.155593812 | BV21: dc = | CA21: =IF(AND(($BQ$32=0),($AD$12/$AD$9<=1)),1+0.4*$CA$31,IF(AND(($BQ$32=0),($AD$12/$AD$9>1)),1+(0.4*$CA$31),IF(AND(($BQ$32>0),($AD$12/$AD$9<=1)),$CA$25-((1-$CA$25)/($CA$20*TAN(RADIANS($BQ$32)))),IF(AND(($BQ$32>0),($AD$12/$AD$9>1)),$CA$25-((1-$CA$25)/($CA$20*TAN(RADIANS($BQ$32)))))))) -> 1.15 | CF21: sc = | CJ21: =IF($CN$21="M",$AA$21,IF($CN$21="H",$AW$21,IF($CN$21="V",$BQ$21))) -> 1.155593812 | CN21: =IF($CS$32="Hansen [H]","H",IF($CS$32="Vesic [v]","V")) -> V | CO21: dc = | CS21: =IF($CV$21="M",$AK$21,IF($CV$21="H",$BF$21,IF($CV$21="V",$CA$21))) -> 1.15 | CV21: =IF($CS$32="Hansen [H]","H",IF($CS$32="Vesic [v]","V")) -> V
B22: Df = | G22: =$AD$12 -> 1.5 | L22: =IF($B$32="Genel Makaslama Yenilmesi","Nq =","Nq*=") -> Nq = | P22: =EXP(PI()*(0.75-$G$25/360)*TAN(RADIANS($G$25)))^2/(2*COS(RADIANS(45+$G$25/2))^2) -> 1 | W22: ic = | AA22: =IF($AA$29=0,1,(1-($AA$29/90))^2) -> 1 | AG22: g₂ = | AK22: =$P$21 -> 18 | AR22: =IF(BQ9="Temel genişliği yönünde","ic,B",IF(BQ9="Temel uzunluğu yönünde","ic,L =","ic =")) -> ic = | AW22: =IF($BF$32=0,1,IF($AY$11=0,1,IF($AY$11>0,$AW$26-((1-$AW$26)/($BF$24-1))))) -> 1 | BB22: gc = | BF22: =IF($BU$14>0,1-($BU$14/147),1) -> 1 | BM22: =IF(BQ9="Temel genişliği yönünde","ic,B",IF(BQ9="Temel uzunluğu yönünde","ic,L =","ic =")) -> ic = | BQ22: =IF($BF$32=0,1,IF($AY$11>0,$BQ$26-((1-$BQ$26)/($CA$24*TAN(BQ32*PI()/180))),IF(AND($AY$11=0,1-(($CA$32*AW32)/($BO$42*$BW$42*$BF$31*$CA$20))<0),1,IF(AND($AY$11=0,1-(($CA$32*AW32)/($BO$42*$BW$42*$BF$31*$CA$20))>=0),1-(($CA$32*AW32)/($BO$42*$BW$42*$BF$31*$CA$20)))))) -> 1 | BV22: gc = | CA22: =IF($BU$14="",1,IF(AND($BU$14>0,$AY$11=0),1-((2*RADIANS($BU$14))/(PI()+2)),IF(AND($BU$14>0,$BQ$32>0),$CA$26-((1-$CA$26)/($CA$20*TAN(RADIANS($BQ$32))))))) -> 1 | CF22: ic = | CJ22: =IF($CN$22="M",$AA$22,IF($CN$22="H",$AW$22,IF($CN$22="V",$BQ$22))) -> 1 | CN22: =IF($CS$32="Hansen [H]","H",IF($CS$32="Vesic [v]","V")) -> V | CO22: gc = | CS22: =IF($CV$22="H",$BF$22,IF($CV$22="V",$CA$22)) -> 1 | CV22: =IF($CS$32="Hansen [H]","H",IF($CS$32="Vesic [v]","V")) -> V
B23: =IF($AY$11=0,"ϒd·Dғ=","ϒ₁·Dғ=") -> ϒd·Dғ= | G23: =IF($AY$11=0,$AD$12*$AY$10,IF($S$16<=$AD$12,(($S$16*$AY$9)+(($AD$12-$S$16)*($AY$10-9.81))),($AY$9*$AD$12))) -> 27 | L23: B = | P23: =+$AD$9 -> 4 | W23: Df = | AA23: =$AD$12 -> 1.5 | AG23: Nq = | AK23: =(TAN(RADIANS(45+($AY$11/2)))^2)*(EXP(PI()*TAN(RADIANS($AY$11)))) -> 1 | AR23: bc = | AW23: =IF($BM$14="",1,IF(AND($AY$11=0,$BM$14>0),$BM$14/147,IF(AND($AY$11>0,$BM$14>0),(1-($BM$14/147))))) -> 1 | BB23: g₂ = | BF23: =$P$21 -> 18 | BM23: bc = | BQ23: =IF($BM$14="",1,IF($AY$11=0,($BM$14*PI()/180)/5.14,IF($AY$11>0,1-((2*RADIANS($BM$14))/(5.14*TAN($BQ$32*PI()/180)))))) -> 1 | BV23: g₂ = | CA23: =$P$21 -> 18 | CF23: bc = | CJ23: =IF($CN$23="H",$AW$23,IF($CN$23="V",$BQ$23)) -> 1 | CN23: =IF($CS$32="Hansen [H]","H",IF($CS$32="Vesic [v]","V")) -> V | CO23: g₂ = | CS23: =$P$21 -> 18
B24: =IF($B$32="Genel Makaslama Yenilmesi","Nᵧ =","Nᵧ*=") -> Nᵧ = | G24: =TAN(RADIANS($G$25))/2*($G$26/COS(RADIANS($G$25))^2-1) -> 0 | L24: K2 = | P24: =+IF($AD$11="Şerit [B/L=0]",1,IF($AD$11="Dikdörtgen",(1-(0.2*$AD$9/$AD$10)),IF($AD$11="Kare",0.8,0.6))) -> 0.84 | W24: sq = | AA24: =IF($AA$29>0,"",IF(AND($AY$11=0,$AD$10="şerit"),1,IF(AND($AY$11>0,$AD$10="şerit"),1+0.1*(TAN(RADIANS(45+($AY$11/2)))^2)*(0),IF($AY$11=0,1,IF($AY$11>0,1+0.1*(TAN(RADIANS(45+($AY$11/2)))^2)*(AD9/AD10)))))) -> 1 | AG24: dq = | AK24: =IF($AY$11>0,(1+0.1*SQRT(TAN(RADIANS(45+$AY$11/2))^2)*($AD$12/$AD$9)),1) -> 1 | AR24: Df = | AW24: =$AD$12 -> 1.5 | BB24: Nq = | BF24: =(TAN(RADIANS(45+($AY$11/2)))^2)*(EXP(PI()*TAN(RADIANS($AY$11)))) -> 1 | BM24: Df = | BQ24: =$AD$12 -> 1.5 | BV24: Nq = | CA24: =(TAN(RADIANS(45+($BQ$32/2)))^2)*(EXP(PI()*TAN(RADIANS($BQ$32)))) -> 1 | CF24: Df = | CJ24: =$AD$12 -> 1.5 | CO24: Nq = | CS24: =(TAN(RADIANS(45+($AY$11/2)))^2)*(EXP(PI()*TAN(RADIANS($AY$11)))) -> 1
B25: =IF(AND($B$32="Lokal Makaslama Yenilmesi",AY11=0),"φ* =",IF($AY$11=0,"φᵤ",IF($B$32="Genel Makaslama Yenilmesi","φ =","φ* ="))) -> φᵤ | G25: =IF($B$32="Genel Makaslama Yenilmesi",$AY$11,$AY$11*2/3) -> 0 | W25: iq = | AA25: =IF($AA$29=0,1,(1-($AA$29/90))^2) -> 1 | AG25: =IF($AY$11=0,"ϒd·Dғ=","ϒ₁·Dғ=") -> ϒd·Dғ= | AK25: =$G$23 -> 27 | AR25: =IF(BQ9="Yük eğimi yok","sq =",IF(BQ9="Temel genişliği yönünde","sq,B=",IF(BQ9="Temel uzunluğu yönünde","sq,L ="))) -> sq = | AW25: =IF(AND($AY$11>=0,$AD$10="şerit",$BQ$9="Yük eğimi yok"),1,IF(AND($AY$11>=0,$BQ$9="Yük eğimi yok"),1+($BO$42/$BW$42)*SIN(RADIANS($AY$11)),IF(AND($AY$11>=0,$BQ$9="Temel genişliği yönünde"),1+(SIN(RADIANS($AY$11))*(AD9*AW26)/AD10),IF(AND($AY$11>=0,$BQ$9="Temel uzunluğu yönünde"),1+((AD10*AW26)/AD9)*SIN(RADIANS($AY$11)))))) -> 1 | BB25: =IF(BQ9="Yük eğimi yok","dq =",IF(BQ9="Temel genişliği yönünde","dq,B =",IF(BQ9="Temel uzunluğu yönünde","dq,L ="))) -> dq = | BF25: =IF($AY$11=0,1,IF(AND($BQ$9="Yük eğimi yok",$AY$11>0,$AD$12<=AD9),1+(2*TAN(RADIANS($AY$11)))*(1-SIN(RADIANS($AY$11)))^2*($AD$12/AD9),IF(AND($BQ$9="Yük eğimi yok",$AY$11>0,$AD$12>AD9),1+(2*TAN(RADIANS($AY$11)))*(1-SIN(RADIANS($AY$11)))^2*ATAN($AD$12/AD9),IF(AY11=0,1,IF(AND($BQ$9="Temel genişliği yönünde",$AY$11>0,$AD$12<=AD9),1+(2*TAN(RADIANS($AY$11)))*(1-SIN(RADIANS($AY$11)))^2*($AD$12/AD9),IF(AND($BQ$9="Temel genişliği yönünde",$AY$11>0,$AD$12>AD9),1+(2*TAN(RADIANS($AY$11)))*(1-SIN(RADIANS($AY$11)))^2*ATAN($AD$12/AD9),IF(AND($BQ$9="Temel uzunluğu yönünde",$AY$11>0,$AD$12<=AD9),1+(2*TAN(RADIANS($AY$11)))*(1-SIN(RADIANS($AY$11)))^2*($AD$12/$BW$42),IF(AND($BQ$9="Temel uzunluğu yönünde",$AY$11>0,$AD$12>AD9),1+(2*TAN(RADIANS($AY$11)))*(1-SIN(RADIANS($AY$11)))^2*ATAN($AD$12/$BW$42))))))))) -> 1 | BM25: =IF($BQ$9="Temel genişliği yönünde","sq,B",IF($BQ$9="Temel uzunluğu yönünde","sq,L","sq" )) -> sq | BQ25: =IF(AND($AD$11="Dikdörtgen",$BQ$9="Yük eğimi yok"),1+((AD9/AD10)*TAN(RADIANS($BQ$32))),IF(AND($AD$11="Dikdörtgen",$BQ$9="Temel genişliği yönünde"),1+((AD9/AD10)*TAN(RADIANS($BQ$32))),IF(AND($AD$11="Dikdörtgen",$BQ$9="Temel uzunluğu yönünde"),1+((AD10/AD9)*TAN(RADIANS($BQ$32))),IF($AD$11="Kare",1+((AD9/AD10)*TAN(RADIANS($BQ$32))),IF($AD$11="Daire [B=D]",1+(AD9/AD10)*TAN(RADIANS($BQ$32)),IF($AD$11="Şerit",1,"-")))))) -> 1 | BV25: dq = | CA25: =IF($BQ$32=0,1,IF(AND(($BQ$32>0),($AD$12/$AD$9<=1)),1+2*(TAN(RADIANS($BQ$32))*((1-SIN(RADIANS($BQ$32)))^2)*($AD$12/$AD$9)),IF(AND(($BQ$32>0),($AD$12/$AD$9>1)),1+2*(TAN(RADIANS($BQ$32))*((1-SIN(RADIANS($BQ$32)))^2*$CA$31))))) -> 1 | CF25: sq = | CJ25: =IF(CN21="M",AA24,IF(CN21="H",AW25,IF(CN21="V",BQ25))) -> 1 | CO25: dq = | CS25: =IF(CV21="M",AK24,IF(CV21="H",BF25,IF(CV21="V",CA25))) -> 1
B26: KPγ= | G26: =8.4834+(2.3427*EXP(0.0971*$G$25))+(0.0000208*EXP(0.343*$G$25)) -> 10.8261208 | W26: B = | AA26: =$AD$9 -> 4 | AG26: Ng = | AK26: =(TAN(RADIANS(1.4*$AY$11))*($AK$23-1)) -> 0 | AR26: =IF(BQ9="Temel genişliği yönünde","iq,B =",IF(BQ9="Temel uzunluğu yönünde","iq,L =","iq =")) -> iq = | AW26: =IF($BF$32=0,1,IF($AY$11=0,1,IF(AND($AY$11>0,$BQ$9="Temel genişliği yönünde"),(1-((0.5*$AW$32)/($BQ$12+($BO$42*$BW$42*$BF$31*_xlfn.COT(RADIANS($AY$11))))))^BA26,IF(AND($AY$11>0,$BQ$9="Temel uzunluğu yönünde"),(1-((0.5*AW32)/($BQ$12+($BO$42*$BW$42*BF31*_xlfn.COT(RADIANS($AY$11))))))^BA26)))) -> 1 | AZ26: α: | BA26: 3 | BB26: gq = | BF26: =IF($BU$14=0,1,((1-0.5*TAN(RADIANS($BU$14)))^5)) -> 1 | BM26: =IF(BQ9="Temel genişliği yönünde","iq,B =",IF(BQ9="Temel uzunluğu yönünde","iq,L =","iq =")) -> iq = | BQ26: =IF($BF$32=0,1,IF($AY$11=0,1,IF(AND($AY$11>0,(1-($AW$32/($BQ$12+(($BO$42*$BW$42*$BF$31)*_xlfn.COT(RADIANS($AY$11))))))^$CA$32<0),0,IF(AND($AY$11>0, (1-($AW$32/($BQ$12+(($BO$42*$BW$42*$BF$31)*_xlfn.COT(RADIANS($AY$11))))))^$CA$32>0),(1-($AW$32/($BQ$12+(($BO$42*$BW$42*$BF$31)*_xlfn.COT(RADIANS($AY$11))))))^$CA$32)))) -> 1 | BV26: gq = | CA26: =IF($BU$14="",1,((1-TAN(RADIANS($BU$14)))^2)) -> 1 | CF26: iq = | CJ26: =IF(CN22="M",AA25,IF(CN22="H",AW26,IF(CN22="V",BQ26))) -> 1 | CO26: gq = | CS26: =IF($CV$22="H",$BF$26,IF($CV$22="V",CA26)) -> 1
B27: aθ= | G27: =EXP(PI()*(0.75-$G$25/360)*TAN($G$25*PI()/180)) -> 1 | W27: sg = | AA27: =IF($AA$29>0,"",IF(AND($AY$11=10,$AD$10="şerit"),1,IF(AND($AY$11>0,$AD$10="şerit"),1+0.1*(TAN(RADIANS(45+($AY$11/2)))^2)*(0),IF($AY$11=0,1,IF($AY$11>0,1+0.1*(TAN(RADIANS(45+($AY$11/2)))^2)*($BO$42/$BW$42)))))) -> 1 | AG27: dg = | AK27: =IF($AY$11>0,(1+0.1*SQRT(TAN(RADIANS(45+($AY$11/2)))^2)*($AD$12/$AD$9)),1) -> 1 | AR27: bq = | AW27: =IF($BM$14="",1,IF($AY$11>=0,EXP((-2*(RADIANS($BM$14))*TAN($AY$11*PI()/180))))) -> 1 | BB27: =IF($AY$11=0,"ϒd·Dғ=","ϒ₁·Dғ=") -> ϒd·Dғ= | BF27: =$G$23 -> 27 | BM27: bq = | BQ27: =IF($BM$14="",1,(1-RADIANS($BM$14)*TAN($BQ$32*PI()/180))^2) -> 1 | BV27: =IF($AY$11=0,"ϒd·Dғ=","ϒ₁·Dғ=") -> ϒd·Dғ= | CA27: =$G$23 -> 27 | CF27: bq = | CJ27: =IF(CN23="H",AW27,IF(CN23="V",BQ27)) -> 1 | CO27: =IF($AY$11=0,"ϒd·Dғ=","ϒ₁·Dғ=") -> ϒd·Dғ= | CS27: =$G$23 -> 27
B28: γw = | G28: 9.81 | W28: ig = | AA28: =IF($AY$11=0,1,(1-($AA$29/$AY$11))^2) -> 1 | AR28: B = | AW28: =$AD$9 -> 4 | BB28: Ng = | BF28: =(1.5*TAN(RADIANS($AY$11))*($BF$24-1)) -> 0 | BM28: B = | BQ28: =$AD$9 -> 4 | BV28: Ng = | CA28: =(2*TAN(RADIANS($BQ$32))*($CA$24+1)) -> 0 | CF28: =BL42 -> B = | CJ28: =$BO$42 -> 4 | CO28: Ng = | CS28: =(2*TAN(RADIANS($AY$11))*(CS24-1)) -> 0
B29: =IF(B32="Genel Makaslama Yenilmesi","","c*, ø*: Lokal Makaslama Yenilmesi için 2/3 oranında azaltılmış değerler.") ->  | W29: θ= | AA29: =IF($BQ$9="Yük eğimi yok",0,IF($BQ$9="Temel uzunluğu yönünde",ATAN(BV11/BQ12)*180/PI(),IF($BQ$9="Temel genişliği yönünde",ATAN(BN11/BQ12)*180/PI()))) -> 0 | AR29: =IF(BQ9="Yük eğimi yok","sγ =",IF(BQ9="Temel genişliği yönünde","sγ,B =",IF(BQ9="Temel uzunluğu yönünde","sγ,L ="))) -> sγ = | AW29: =IF(AND($AY$11>=0,$AD$10="şerit",$BQ$9="Yük eğimi yok"),1,IF(AND($AY$11>=0,$BQ$9="Yük eğimi yok",(1-(0.4*($BO$42/$BW$42)))<0.6),0.6,IF(AND($AY$11>=0,$BQ$9="Yük eğimi yok",(1-(0.4*($BO$42/$BW$42)))>=0.6),1-(0.4*($BO$42/$BW$42)),IF(AND($AY$11>=0,$BQ$9="Temel genişliği yönünde",(1-(0.4*(AD9/AD10)*AW30))<0.6),0.6,IF(AND($AY$11>=0,$BQ$9="Temel genişliği yönünde",(1-(0.4*(AD9/AD10)*AW30))>0.6),1-(0.4*(AD9/AD10)*AW30),IF(AND($AY$11>=0,$BQ$9="Temel uzunluğu yönünde",(1-(0.4*(AD10)/AD9)*AW30)<0.6),0.6,IF(AND($AY$11>=0,$BQ$9="Temel uzunluğu yönünde",(1-(0.4*(AD10)/AD9)*AW30)>0.6),1-(0.4*(AD10)/AD9)*AW30))))))) -> 0.68 | BB29: =IF(BQ9="Yük eğimi yok","dγ =",IF(BQ9="Temel genişliği yönünde","dγ,B =",IF(BQ9="Temel uzunluğu yönünde","dγ,L ="))) -> dγ = | BF29: 1 | BM29: =IF($BQ$9="Temel genişliği yönünde","sγ,B",IF($BQ$9="Temel uzunluğu yönünde","sγ,L","sγ" )) -> sγ | BQ29: =IF(AND($AD$11="Dikdörtgen",$BQ$9="Yük eğimi yok"),1-(0.4*(AD9/AD10)),IF(AND($AD$11="Dikdörtgen",$BQ$9="Temel genişliği yönünde"),1-(0.4*(AD9/AD10)),IF(AND($AD$11="Dikdörtgen",$BQ$9="Temel uzunluğu yönünde"),1-(0.4*(AD10/AD9)),IF($AD$11="Kare",0.6,IF($AD$11="Daire [B=D]",0.6,IF($AD$11="Şerit",1,"-")))))) -> 0.68 | BV29: dg = | CA29: =IF($BQ$32=0,1,IF($BQ$32>0,1)) -> 1 | CF29: sg = | CJ29: =IF(CN21="M",AA27,IF(CN21="H",AW29,IF(CN21="V",BQ29))) -> 0.68 | CO29: dg = | CS29: =IF(CV21="M",$AK$27,IF(CV21="H",$BF$29,IF(CV21="V",$CA$29))) -> 1
B30: Zemin yenilme tipi için seçim yapınız. | W30: Kp= | AA30: =TAN(RADIANS(45+($AY$11/2)))^2 -> 1 | AR30: =IF(BQ9="Temel genişliği yönünde","iᵧ,B =",IF(BQ9="Temel uzunluğu yönünde","iᵧ,L =","iᵧ =")) -> iᵧ = | AW30: =IF($AY$11=0,1,IF(BF32=0,1,IF($BM$14>0,(1-((((0.7-$BM$14)/450)*AW32)/(BQ12+($BO$42*$BW$42*$BF$31*_xlfn.COT(RADIANS($AY$11))))))^BA30,IF(AND($AY$11>0,$BQ$9="Temel genişliği yönünde"),(1-((0.7*AW32)/(BQ12+($BO$42*$BW$42*$BF$31*_xlfn.COT(RADIANS($AY$11))))))^BA30,IF(AND($AY$11>0,$BQ$9="Temel uzunluğu yönünde"),(1-((0.7*AW32)/(BQ12+($BO$42*$BW$42*$BF$31*_xlfn.COT(RADIANS($AY$11))))))^BA30))))) -> 1 | AZ30: α: | BA30: 4 | BB30: gg = | BF30: =IF($BU$14=0,1,((1-0.5*TAN(RADIANS($BU$14)))^5)) -> 1 | BM30: =IF(BQ9="Temel genişliği yönünde","iᵧ,B =",IF(BQ9="Temel uzunluğu yönünde","iᵧ,L =","iᵧ =")) -> iᵧ = | BQ30: =IF($BF$32=0,1,IF($AY$11=0,1,IF(AND($AY$11>0,(1-($AW$32/($BQ$12+(($BO$42*$BW$42*$BF$31)*_xlfn.COT(RADIANS($AY$11))))))^($CA$32+1)<0),0,IF(AND($AY$11>0,(1-($AW$32/($BQ$12+(($BO$42*$BW$42*$BF$31)*_xlfn.COT(RADIANS($AY$11))))))^($CA$32+1)>0),(1-($AW$32/($BQ$12+(($BO$42*$BW$42*$BF$31)*_xlfn.COT(RADIANS($AY$11))))))^($CA$32+1))))) -> 1 | BV30: gg = | CA30: =IF($BU$14="",1,((1-TAN(RADIANS($BU$14)))^2)) -> 1 | CF30: ig = | CJ30: =IF(CN22="M",AA28,IF(CN22="H",AW30,IF(CN22="V",BQ30))) -> 1 | CO30: gg = | CS30: =IF($CV$22="H",$BF$30,IF($CV$22="V",$CA$30)) -> 1
AR31: bg = | AW31: =IF($BM$14="",1,IF($AY$11>=0,EXP((-2.7*RADIANS($BM$14)*TAN($AY$11*PI()/180))))) -> 1 | BB31: ca= | BF31: =$AY$12*BI31 -> 40 | BI31: 1 | BM31: bg = | BQ31: =IF($BM$14="",1,(1-RADIANS($BM$14)*TAN($BQ$32*PI()/180))^2) -> 1 | BV31: =IF(AND(($AY$11>0),($AD$12/$AD$9<=1)),"k",IF(AND(($AY$11>0),($AD$12/$AD$9>1)),"k' (rad.)",IF(AND(($AY$11=0),($AD$12/$AD$9<=1)),"k",IF(AND(($AY$11=0),($AD$12/$AD$9>1)),"k' (rad.)")))) -> k | CA31: =IF($AD$12/$AD$9<=1,AD12/AD9,ATAN($AD$12/$AD$9)) -> 0.375 | CF31: bg = | CJ31: =IF(CN23="H",AW31,IF(CN23="V",BQ31)) -> 1
B32: Genel Makaslama Yenilmesi | AR32: =IF(BQ9="Temel genişliği yönünde","HB =",IF(BQ9="Temel uzunluğu yönünde","HL=","-")) -> - | AW32: =IF(BQ9="Temel genişliği yönünde",BN11,IF(BQ9="Temel uzunluğu yönünde",BV11,SQRT(BN11^2+BV11^2))) -> 0 | BB32: θ= | BF32: =IF($BQ$9="Yük eğimi yok",0,IF($BQ$9="Temel uzunluğu yönünde",ATAN(BV11/BQ12)*180/PI(),IF($BQ$9="Temel genişliği yönünde",ATAN(BN11/BQ12)*180/PI()))) -> 0 | BM32: =IF($BD$41>0,"f* =","f =") -> f = | BQ32: =IF($BG$41>0,(0.67+$BG$41-(($BG$41^2)*0.75))*$AY$11,$AY$11) -> 0 | BV32: =IF(AND($BQ$9="Temel genişliği yönünde",BN11>0),"mB=",IF(AND($BQ$9="Temel uzunluğu yönünde",BV11>0),"mL=","-")) -> - | CA32: =IF(AND($BQ$9="Temel genişliği yönünde",BV11>0,BN11>0),SQRT((((2+($BO$42/$BW$42))/(1+($BO$42/$BW$42)))^2) +(((2+($BW$42/$BO$42))/(1+($BW$42/$BO$42)))^2)),IF(AND($BQ$9="Temel uzunluğu yönünde",BV11>0,BN11>0),SQRT((((2+($BO$42/$BW$42))/(1+($BO$42/$BW$42)))^2) +(((2+($BW$42/$BO$42))/(1+($BW$42/$BO$42)))^2)),IF($BQ$9="Temel genişliği yönünde",(2+($BO$42/$BW$42))/(1+($BO$42/$BW$42)),IF($BQ$9="Temel uzunluğu yönünde",(2+($BW$42/$BO$42))/(1+($BW$42/$BO$42)),"-")))) -> - | CF32: Düzeltme katsayıları için seçim yapınız | CS32: Vesic [V]
B33: =IF(AND(B32="Genel Makaslama Yenilmesi",AY11=0),"qk=cᵤ∙Nc∙K₁+q",IF(AND(B32="Lokal Makaslama Yenilmesi",AY11=0),"qk=cᵤ*∙Nc*∙K₁+q",IF(B32="Genel Makaslama Yenilmesi","qk=c∙Nc∙K₁+γ₁∙Df∙Nq+1/2 γ₂∙B∙Nγ∙K₂","qk=c*∙Nc*∙K₁+γ₁∙Df∙Nq*+1/2∙ γ₂∙B∙Nᵧ*∙K₂"))) -> qk=cᵤ∙Nc∙K₁+q | W33: =IF(AY11=0,"qk=cᵤ∙Nc∙sc∙dc∙ic + q","qk=c∙Nc∙sc∙dc∙ic + γ₁∙Df∙Nq∙sq∙dq∙iq + 1/2∙ γ₂∙B∙Nᵧ∙sᵧ∙dᵧ∙iᵧ") -> qk=cᵤ∙Nc∙sc∙dc∙ic + q | AR33: =IF(AY11=0,"Ø=0 için: qk=5.14∙cu∙(1+s'c+d'c)","qk=c∙Nc∙sc∙dc∙ic∙gc∙bc+γ₁∙Df∙Nq∙sq∙dq∙iq∙gq∙bq+1/2∙γ₂∙B∙Nᵧ∙sᵧ∙dᵧ∙iᵧ∙gᵧ∙bᵧ") -> Ø=0 için: qk=5.14∙cu∙(1+s'c+d'c) | BM33: =IF(AY11=0,"qk=cᵤ∙Nc∙sc∙dc∙ic∙gc∙bc + q","qk=c∙Nc∙sc∙dc∙ic∙gc∙bc+γ₁∙Df∙Nq∙sq∙dq∙iq∙gq∙bq +1/2∙γ₂∙B∙Nᵧ∙sᵧ∙dᵧ∙iᵧ∙gᵧ∙bᵧ") -> qk=cᵤ∙Nc∙sc∙dc∙ic∙gc∙bc + q | CF33: =IF(AY11=0,"qk=cᵤ∙Nc∙sc∙dc∙ic∙gc∙bc + q","qk=c∙Nc∙sc∙dc∙ic∙gc∙bc+γ₁∙Df∙Nq∙sq∙dq∙iq∙gq∙bq+1/2∙γ₂∙B'∙Nᵧ∙sᵧ∙dᵧ∙iᵧ∙gᵧ∙bᵧ") -> qk=cᵤ∙Nc∙sc∙dc∙ic∙gc∙bc + q
B35: qk = | K35: =IF(OR(BN10>0,BV10>0),"Hesaplanamaz",IF($AY$11=0,$G$20*$P$20*$G$21+$G$23,IF($S$16>=($AD$12+$AD$9),($G$20*$P$20*$G$21+$G$23*$P$22+0.5*$P$21*$P$23*$G$24*$P$24),IF(AND($S$16<($AD$12+$AD$9),$S$16<$AD$12),($G$20*$P$20*$G$21+$G$23*$P$22+0.5*$P$21*$P$23*$G$24*$P$24),IF($S$16=$AD$12,($G$20*$P$20*$G$21)+($AY$9*$AD$12*$P$22)+(0.5*$P$21*$P$23*$G$24*$P$24),IF(AND($S$16<($AD$12+$AD$9),$S$16>$AD$12),($G$20*$P$20*$G$21+$G$23*$P$22+(0.5*$P$21*$P$23*$G$24*$P$24)),"-")))))) -> 310.3344934 | W35: qk = | AE35: =IF(AND($S$16>=($AD$12+$AD$9)),PRODUCT($AA$20,$AK$20,$AA$21,$AK$21,$AA$22)+PRODUCT($AK$25,$AK$23,$AA$24,$AK$24,$AA$25)+PRODUCT(0.5,$AK$22,$AD$9,$AK$26,$AA$27,$AK$27,$AA$28),IF(AND($S$16<($AD$12+$AD$9),$AF$14<$AD$12),PRODUCT($AA$20,$AK$20,$AA$21,$AK$21,$AA$22)+PRODUCT($AK$25,$AK$23,$AA$24,$AK$24,$AA$25)+PRODUCT(0.5,$AK$22,$AD$9,$AK$26,$AA$27,$AK$27,$AA$28),IF(AND($S$16<($AD$12+$AD$9),$S$16=$AD$12),PRODUCT($AA$20,$AK$20,$AA$21,$AK$21,$AA$22)+PRODUCT($AK$25,$AK$23,$AA$24,$AK$24,$AA$25)+PRODUCT(0.5,$AK$22,$AD$9,$AK$26,$AA$27,$AK$27),IF(AND($S$16<($AD$12+$AD$9),$AF$14>$AD$12),PRODUCT($AA$20,$AK$20,$AA$21,$AK$21,$AA$22)+PRODUCT($AK$25,$AK$23,$AA$24,$AK$24,$AA$28)+PRODUCT(0.5,$AK$22,$AD$9,$AK$26,$AA$27,$AK$27,$AA$28))))) -> 283.4626416 | AR35: qk = | BA35: =IF($AY$11=0,5.14*$AW$20*(1+$AW$21+$BF$21),IF($AY$11=0,5.14*$AY$12*(1+$AW$21+$BF$21),IF(AND($S$16>=(AD12+AD9)),PRODUCT(AW20,BF20,AW21,BF21,AW22,BF22,AW23)+PRODUCT(BF27,BF24,AW25,BF25,AW26,BF26,AW27)+PRODUCT(0.5,BF23,BO42,BF28,AW29,BF29,AW30,BF30,AW31),IF(AND($S$16<(AD12+AD9),$S$16<AD12),PRODUCT($AW$20,$BF$20,$AW$21,$BF$21,$AW$22,$BF$22,$AW$23)+PRODUCT(BF27,BF24,AW25,BF25,AW26,BF26,AW27)+PRODUCT(0.5,BF23,BO42,BF28,AW29,BF29,AW30,BF30,AW31),IF(AND($S$16<(AD12+AD9),$S$16=AD12),PRODUCT(AW20,BF20,AW21,BF21,AW22,BF22,AW23)+PRODUCT(BF27,BF24,AW25,BF25,AW26,BF26,AW27)+PRODUCT(0.5,BF23,BO42,BF28,AW29,BF29,AW30,BF30,AW31),IF(AND($S$16<(AD12+AD9),$S$16>AD12),PRODUCT(AW20,BF20,AW21,BF21,AW22,BF22,AW23)+PRODUCT(BF27,BF24,AW25,BF25,AW26,BF26,AW27)+PRODUCT(0.5,BF23,BO42,BF28,AW29,BF29,AW30,BF30,AW31))))))) -> 263.168 | BM35: qk = | BU35: =IF(AND($S$16>=($AD$12+$AD$9)),PRODUCT(BQ20,CA20,BQ21,CA21,BQ22,CA22,BQ23)+PRODUCT(CA27,CA24,BQ25,CA25,BQ26,CA26,BQ27)+PRODUCT(0.5,CA23,BO42,CA28,BQ29,CA29,BQ30,CA30,BQ31),IF(AND($S$16<($AD$12+$AD$9),$S$16<AD12),PRODUCT(BQ20,CA20,BQ21,CA21,BQ22,CA22,BQ23)+PRODUCT(CA27,CA24,BQ25,CA25,BQ26,CA26,BQ27)+PRODUCT(0.5,CA23,BO42,CA28,BQ29,CA29,BQ30,CA30,BQ31),IF(AND($S$16<($AD$12+$AD$9),$S$16=AD12),PRODUCT(BQ20,CA20,BQ21,CA21,BQ22,CA22,BQ23)+PRODUCT(CA27,CA24,BQ25,CA25,BQ26,CA26,BQ27)+PRODUCT(0.5,CA23,BO42,CA28,BQ29,CA29,BQ30,CA30,BQ31),IF(AND($S$16<($AD$12+$AD$9),$S$16>AD12),PRODUCT(BQ20,CA20,BQ21,CA21,BQ22,CA22,BQ23)+PRODUCT(CA27,CA24,BQ25,CA25,BQ26,CA26,BQ27)+PRODUCT(0.5,CA23,BO42,CA28,BQ29,CA29,BQ30,CA30,BQ31))))) -> 300.3132621 | CF35: qk = | CN35: =IF(AND($S$16>=($AD$12+$AD$9)),PRODUCT(CJ20,CS20,CJ21,CS21,CJ22,CS22,CJ23)+PRODUCT(CS27,CS24,CJ25,CS25,CJ26,CS26,CJ27)+PRODUCT(0.5,CS23,BO42,CS28,CJ29,CS29,CJ30,CS30,CJ31),IF(AND($S$16<($AD$12+$AD$9),$S$16<$AD$12),PRODUCT(CJ20,CS20,CJ21,CS21,CJ22,CS22,CJ23)+PRODUCT(CS27,CS24,CJ25,CS25,CJ26,CS26,CJ27)+PRODUCT(0.5,CS23,BO42,CS28,CJ29,CS29,CJ30,CS30,CJ31),IF(AND($S$16<($AD$12+$AD$9),$S$16=$AD$12),PRODUCT(CJ20,CS20,CJ21,CS21,CJ22,CS22,CJ23)+PRODUCT(CS27,CS24,CJ25,CS25,CJ26,CS26,CJ27)+PRODUCT(0.5,CS23,BO42,CS28,CJ29,CS29,CJ30,CS30,CJ31),IF(AND($S$16<($AD$12+$AD$9),$S$16>$AD$12),PRODUCT(CJ20,CS20,CJ21,CS21,CJ22,CS22,CJ23)+PRODUCT(CS27,CS24,CJ25,CS25,CJ26,CS26,CJ27)+PRODUCT(0.5,CS23,BO42,CS28,CJ29,CS29,CJ30,CS30,CJ31))))) -> 300.3132621
B36: qt = qk/γRv : | K36: =IF($K$35="Hesaplanamaz","-",$K$35/$CT$10) -> 221.6674953 | W36: qt = qk/γRv : | AE36: =$AE$35/$CT$10 -> 202.4733154 | AR36: qt = qk/γRv : | BA36: =$BA$35/$CT$10 -> 187.9771429 | BM36: qt = qk/γRv : | BU36: =$BU$35/$CT$10 -> 214.5094729 | CF36: qt = qk/γRv : | CN36: =$CN$35/$CT$10 -> 214.5094729
B38: Genel Makaslama Yenilmesi | C38: Lokal Makaslama Yenilmesi | AZ38: Genel makaslama yenilmesi | BA38: Lokal mak. yenilmesi | BB38: Zımbalama mak. yenilmesi | BI38: Vesic [V] | BJ38: Hansen [H]
B39: AÇIKLAMALAR: Hesaplamaların sorumluluğu kullanıcıya aittir. Sığ Temellerin Taşıma Gücü Kapasitesi hesap cetveline ait telif hakları, 5846 sayılı Fikir ve Sanat Eserleri Kanunu gereğince TMMOB Jeoloji Mühendisleri Odasına ait olup, izin almaksızın içeriğinde herhangi bir değişiklik yapılamaz. Hesap cetveli JMO logolu kullanılmak kaydıyla ücretsiz olarak herkesin kullanımına açıktır. Ancak Oda logosunun hesap cetvelinden çıkarılarak kullanılmasının tespit edilmesi durumunda 5846 sayılı kanun gereğince ilgili kişi hakkında gerekli hukuki yollara başvurulur. 1- Program ile çözümün tek tabakalı zemin durumu için olduğu bilinmelidir. 2- Yalnızca "Turuncu renkli hücrelerde" seçim ve veri girişi yapılmalıdır. 3- L"Kızgın yüz ifadesi" hatalı işlemi ifade eder. | AZ39: Zemin Yenilme Tipi: | BL39: Efektif Boyutlar | CB39: Sığ Temellerin Taşıma Gücü Hesabı (TBDY, 16.8.3)
AZ40: Genel makaslama yenilmesi | BL40: Etkin Temel Genişliği, B' | BT40: Etkin Temel Uzunluğu, L' | CB40: Temelin Taşıma Gücünün Yeterliliği Koşulu: qo ≤ qt
AZ41: =IF(OR(($AZ$40="Lokal mak. yenilmesi"),($AZ$40="Zımbalama mak. yenilmesi")),"*Dᵣ=","") ->  | BK41: =IF(AND($AZ$40="Genel makaslama yenilmesi",$BG$41>0),"L",IF($BG$41>0.67,"L",IF(AND($AZ$40="Lokal mak. yenilmesi",$BG$41=""),"L",IF(AND($AZ$40="Lokal mak. yenilmesi",$BG$41>0.67),"L",IF(AND($AZ$40="Zımbalama mak. yenilmesi",$BG$41=""),"L",""))))) ->  | CB41: Düşey Taşıma Kapasitesi Kontrolü (Doğrulama)
AZ42: =IF(OR(($AZ$40="Lokal mak. yenilmesi"),($AZ$40="Zımbalama mak. yenilmesi")),"*Seçim için grafiği kullanınız.","") ->  | BG42: =IF(AND($AZ$40="Lokal mak. yenilmesi",$BG$41>0),"Mavi bölge içerisinde",IF(AND($AZ$40="Zımbalama mak. yenilmesi",$BG$41>0),"Mavi bölge dışında","")) ->  | BL42: =IF($BN$10="","B =","B'=") -> B = | BO42: =($AD$9-(2*$BN$10)) -> 4 | BT42: =IF($BV$10=0,"L =","L'=") -> L = | BW42: =IF($AD$10="şerit","Şerit temel",($AD$10-(2*$BV$10))) -> 5 | CB42: Statik Açıdan | CM42: Dinamik Açıdan
AZ44: Df/B= | BC44: =IF($AD$11="Kare",$AD$12/$AD$9,IF($AD$11="Dikdörtgen",$AD$12/((2*$AD$9*$AD$10)/($AD$9+$AD$10)))) -> 0.3375 | BF44: f= | BI44: =AY11 -> 0 | CB44: =IF($CT$11="","",IF(CN36>$CT$11," YETERLİ ",IF(CN36<$CT$11,"YETERSİZ (?)"))) -> YETERSİZ (?) | CM44: =IF($CT$13="","",IF(CN36>$CT$13," YETERLİ",IF(CN36<$CT$13,"YETERSİZ (?)"))) -> YETERLİ
AZ45: Vesic için yenilme tipi seçimi | BL45: =IF($BO$42>$BW$42, "Program çözümü kontrol edilmeli","") -> 

Sheet Birim dönüşümü
A1: CONVERSION FACTORS
A2: CONVERSION FACTORS FROM SI | F2: CONVERSION FACTORS FROM
A3: TO ENGLISH UNITS | F3: ENGLISH TO SI UNITS
A4: SI'DAN İNGİLİZ BİRİMLERE DÖNÜŞÜM FAKTÖRLERİ | F4: İNGİLİZ BİRİMLERDEN SI BİRİMLERE DÖNÜŞÜM FAKTÖRLERİ
F5: Length:
A6: Uzunluk/Length: | F6: 1 ft = 0.3048 m
A7: 1 m = 3.2808 ft | F7: 1 ft = 30.48 cm
A8: 1 cm = 3.281 × 10-2 ft | F8: 1 ft = 304.8 mm
A9: 1 mm = 3.281 × 10-3 ft | F9: 1 in. = 0.0254 m
A10: 1 m = 39.37 in. | F10: 1 in. = 2.54 cm
A11: 1 cm = 0.3937 in. | F11: 1 in. = 25.4 mm
A12: 1 mm = 0.03937 in. | F12: Area
A13: Alan/Area: | F13: 1 ft2 = 929.03 × 10-4 m2
A14: 1 m2 = 10.764 ft2 | F14: 1 ft2 = 929.03 cm2
A15: 1 cm2 = 10.764 × 10-4 ft2 | F15: 1 ft2 = 929.03 × 102 mm2
A16: 1 mm2 = 10.764 × 10-6 ft2 | F16: 1 in.2 = 6.452 × 10-4 m2
A17: 1 m2 = 1550 in.2 | F17: 1 in.2 = 6.452 cm2
A18: 1 cm2 = 0.155 in.2 | F18: 1 in.2 = 645.16 mm2
A19: 1 mm2 = 0.155 × 10-2 in.2 | F19: Volume:
A20: Hacim/Volume: | F20: 1 ft3 = 28.317 × 10-3 m3
A21: 1 m3 = 35.32 ft3 | F21: 1 ft3 = 28.317 × 103 cm3
A22: 1 cm3 = 35.32 × 10-4 ft3 | F22: 1 in.3 = 16.387 × 10-6 m3
A23: 1 m3 = 61,023.4 in.3 | F23: 1 in.3 = 16.387 cm3
A24: 1 cm3 = 0.061023 in.3 | F24: Force:
A25: Kuvvet/Force: | F25: 1 lb = 4.448 N
A26: 1 N = 0.2248 lb | F26: 1 lb = 4.448 × 10-3 kN
A27: 1 kN = 224.8 lb | F27: 1 lb = 0.4536 kgf
A28: 1 kgf = 2.2046 lb | F28: 1 kips = 4.448 kN
A29: 1 kN = 0.2248 kips | F29: 1 U.S. ton = 8.896 kN
A30: 1 kN = 0.1124 U.S. ton | F30: 1 lb = 0.4536 × 10-3 metric ton
A31: 1 metric ton = 2204.6 lb | F31: 1 lb / ft = 14.593 N / m
A32: 1 N / m = 0.0685 lb / ft | F32: Stress:
A33: Basınç/Stress: | F33: 1 lb / ft2 = 47.88 N / m2
A34: 1 N / m2 = 20.885 × 10-3 lb / ft2 | F34: 1 lb / ft2 = 0.04788 kN / m2 | J34: ksf (kilopounds per square foot) = kips/ft2 = 47.882 kN/m2
A35: 1 kN / m2 = 20.885 lb / ft2 | F35: 1 U.S. ton / ft1 = 95.76 kN / m2 | J35: kilopounds per square foot (ksf)
A36: 1 kN / m2 = 0.01044 U.S. ton / ft2 | F36: 1 kip/ft2 = 47.88 kN / m2 | J36: psf (pound per square foot) = 0.04788 kPa
A37: 1 kN / m2 = 20.885 × 10-3 kip / ft2 | F37: 1 lb/in.2 = 6.895 kN / m2 | J37: 1 tsf (tons per square foot) = 95.76 kPa
A38: 1 kN / m2 = 0.145 lb / in.2 | F38: Unit weight:
A39: Birim Ağırlık/Unit weight: | F39: 1 lb / ft3 = 0.1572 kN/m3 | J39: kcf=kips/ft3=157.079 kN/m3
A40: 1 kN / m3 = 6.361 lb / ft3 | F40: 1 lb / in.3 = 271.43 kN/m3 | J40: pcf = lbs/ft3=157.0874 kN/m3
A41: 1 kN / m3 = 0.003682 lb / in.3 | F41: Moment | J41: ksi=kips/in2=6.89475 MPa
A42: Moment/Moment: | F42: 1 lb-ft = 1.3558 N · m | J42: psi veya lb/in2
A43: 1 N · m = 0.7375 lb-ft | F43: 1 lb-in. = 0.11298 N · m
A44: 1 N · m = 8.851 lb-in.
